bitfinex/quotes_SOLUSD_20241210
["timestamp","ask_amount","ask_price","bid_price","bid_amount"]
[1733858449826,10.0,212.5,212.36,0.70591798]
[1733858450925,20.0,212.43,212.3,0.70608065]
[1733858451236,20.0,212.41,212.24,23.39499465]
[1733858451397,20.0,212.4,212.23,0.70639366]
[1733858451592,0.42553191,212.4,212.28,23.39499465]
[1733858451799,0.42553191,212.4,212.29,0.70627142]
[1733858452001,0.42553191,212.4,212.3,23.39499465]
[1733858452217,0.42553191,212.4,212.31,0.70619679]
[1733858452706,0.42553191,212.4,212.28,23.39499465]
[1733858452907,0.42553191,212.4,212.26,0.70620952]
[1733858452908,0.42553191,212.4,212.26,23.39499465]
[1733858453121,0.42553191,212.4,212.27,0.70643349]
[1733858453917,0.42553191,212.4,212.28,23.39499465]
[1733858454125,0.42553191,212.4,212.29,0.70628384]
[1733858454706,0.42553191,212.4,212.3,23.39499465]
[1733858454906,0.42553191,212.4,212.31,0.70619748]
[1733858455130,0.42553191,212.4,212.34,23.39499465]
[1733858455307,0.42553191,212.4,212.35,0.70610861]
[1733858457137,0.42553191,212.4,212.33,0.70616088]
[1733858457730,0.42553191,212.4,212.3,23.39499465]
[1733858457923,0.42553191,212.4,212.28,23.39499465]
[1733858458124,0.42553191,212.4,212.29,0.70627842]
[1733858460424,0.42553191,212.4,212.26,24.10136455]
[1733858460629,0.42553191,212.4,212.28,23.39499465]
[1733858460820,0.42553191,212.4,212.29,0.70626887]
[1733858462243,0.42553191,212.4,212.33,23.39499465]
[1733858462414,0.42553191,212.4,212.34,0.7061315]
[1733858463240,0.42553191,212.4,212.31,0.70615904]
[1733858463724,1.5936,212.39,212.25,24.10129171]
[1733858464039,1.5936,212.39,212.25,0.70629706]
[1733858464240,1.5936,212.39,212.27,23.39499465]
[1733858464241,0.42553191,212.38,212.27,23.39499465]
[1733858464431,0.42553191,212.38,212.28,0.70629476]
[1733858465752,0.42553191,212.38,212.34,14.65268533]
[1733858465954,0.42553191,212.38,212.32,14.65268533]
[1733858466252,0.42553191,212.38,212.33,0.70613993]
[1733858467030,0.42553191,212.38,212.26,14.65268533]
[1733858467222,0.42553191,212.38,212.27,0.70631746]
[1733858467558,8.0985,212.37,212.2,15.35903293]
[1733858467935,8.0985,212.37,212.2,0.7063476]
[1733858467936,0.42553191,212.36,212.2,0.7063476]
[1733858468463,20.0,212.34,212.2,0.7063476]
[1733858468824,0.42553191,212.33,212.2,0.7063476]
[1733858469025,20.0,212.22,212.04,6.5973]
[1733858469325,21.13183191,212.21,212.01,14.65268533]
[1733858469740,20.0,212.19,212.01,14.65268533]
[1733858469942,0.7063,212.18,212.01,14.65268533]
[1733858470255,1.13183191,212.18,212.01,14.65268533]
[1733858470929,1.13183191,212.18,212.0,0.70718167]
[1733858471423,6.5049,212.14,212.0,0.70718167]
[1733858471622,20.0,212.11,211.95,23.5051331]
[1733858471848,0.7063,212.1,211.96,0.70729965]
[1733858472049,1.13183191,212.1,211.96,0.70729965]
[1733858472736,1.13183191,212.1,211.93,23.5051331]
[1733858472737,21.13183191,212.1,211.93,0.707434]
[1733858472941,0.12549,212.08,211.91,0.5793538]
[1733858473133,0.7063,212.08,211.92,0.70750531]
[1733858473449,20.0,212.05,211.91,0.5793538]
[1733858473633,0.7063,212.04,211.91,0.5793538]
[1733858473826,1.13183191,212.04,211.91,0.5793538]
[1733858474667,1.13183191,212.04,211.92,0.70763951]
[1733858474966,0.42553191,212.04,211.95,23.5051331]
[1733858475126,0.42553191,212.04,211.96,0.70734862]
[1733858476566,0.42553191,212.04,211.91,1.28673057]
[1733858476768,0.42553191,212.04,211.91,0.5793538]
[1733858479059,0.42553191,212.04,211.92,0.70756674]
[1733858479356,0.42553191,212.04,211.92,24.21269984]
[1733858480351,0.42553191,212.04,211.96,23.5051331]
[1733858480552,0.42553191,212.04,211.98,23.5051331]
[1733858480729,0.42553191,212.04,211.99,0.70733814]
[1733858481855,0.42553191,212.04,212.0,23.5051331]
[1733858482061,0.42553191,212.04,212.02,23.5051331]
[1733858482355,0.42553191,212.04,212.03,0.70720451]
[1733858482563,0.42553191,212.04,212.03,0.95818451]
[1733858483239,0.42553191,212.04,212.03,24.58880761]
[1733858483899,6.3285,212.2,212.06,0.37647]
[1733858484052,0.7063,212.19,212.09,20.0]
[1733858484234,1.5802,212.21,212.15,23.5051331]
[1733858484428,1.5802,212.21,212.18,23.5051331]
[1733858484763,2.2865,212.36,212.21,0.25098]
[1733858484971,1.5802,212.36,212.26,23.5051331]
[1733858485145,1.5802,212.36,212.28,23.5051331]
[1733858485345,1.5802,212.36,212.29,24.21150261]
[1733858485532,1.5802,212.36,212.29,0.70636951]
[1733858485862,1.5802,212.36,212.26,23.5051331]
[1733858486440,1.5802,212.36,212.23,0.95732777]
[1733858486441,1.5802,212.36,212.24,23.5051331]
[1733858486638,0.7063,212.35,212.24,23.5051331]
[1733858487134,0.7063,212.35,212.23,24.21148087]
[1733858487553,1.5802,212.36,212.24,0.12549]
[1733858487755,1.5802,212.36,212.28,23.5051331]
[1733858488061,1.5802,212.36,212.3,23.6306231]
[1733858488268,6.1117,212.46,212.31,24.21135619]
[1733858488437,2.3521,212.45,212.32,23.5051331]
[1733858488787,1.6458,212.45,212.35,23.5051331]
[1733858489061,1.6458,212.45,212.36,24.21119788]
[1733858489667,10.0,212.5,212.39,23.5051331]
[1733858489838,10.0,212.5,212.41,0.12549]
[1733858490262,10.0,212.5,212.4,24.21104647]
[1733858490482,10.0,212.5,212.38,23.5051331]
[1733858490664,10.0,212.5,212.39,0.12549]
[1733858490994,20.0,212.47,212.32,0.7059459]
[1733858491284,0.7063,212.46,212.33,0.25098]
[1733858491867,0.7063,212.46,212.32,24.21135088]
[1733858492172,0.7063,212.46,212.32,0.70621778]
[1733858492376,0.7063,212.46,212.32,0.12549]
[1733858493088,23.776884,212.45,212.34,0.25098]
[1733858493275,20.0,212.47,212.36,0.12549]
[1733858493481,20.0,212.47,212.37,0.70601619]
[1733858494365,10.0,212.5,212.37,0.70601619]
[1733858494366,10.7063,212.5,212.38,23.6306231]
[1733858494570,10.7063,212.5,212.39,0.70596881]
[1733858495495,10.0,212.5,212.41,23.5051331]
[1733858495677,23.776884,212.49,212.41,24.21102762]
[1733858495876,23.776884,212.49,212.42,0.70589799]
[1733858496485,10.0,212.5,212.07,73.98277795]
[1733858496486,0.12549,212.27,212.07,23.5051331]
[1733858496695,23.776884,212.28,211.97,38.5051331]
[1733858496696,24.66059246,212.28,212.15,23.5051331]
[1733858496862,23.776884,212.28,212.17,23.5051331]
[1733858497063,23.776884,212.28,212.18,1.21604146]
[1733858497299,23.776884,212.28,212.19,0.86176135]
[1733858497877,23.776884,212.28,212.18,0.35423988]
[1733858498400,23.776884,212.28,212.23,312.0]
[1733858498785,23.776884,212.28,212.13,23.5051331]
[1733858498967,23.776884,212.26,212.14,0.3545426]
[1733858499476,23.776884,212.24,212.09,38.50471603]
[1733858500198,1.6458,212.29,212.09,38.50471603]
[1733858500199,23.776884,212.22,212.09,38.50471603]
[1733858500381,23.776884,212.22,212.1,0.25098]
[1733858500694,23.776884,212.22,212.09,38.50471603]
[1733858501666,23.776884,212.2,212.05,38.15000085]
[1733858501995,23.776884,212.18,212.06,0.35534579]
[1733858502900,23.776884,212.18,212.07,38.15000085]
[1733858503205,23.776884,212.18,212.09,38.15000085]
[1733858503496,23.776884,212.18,212.11,0.25098]
[1733858503693,6.1117,212.23,212.11,0.25098]
[1733858503894,2.52942686,212.29,212.16,0.12549]
[1733858504082,1.6458,212.29,212.18,0.25098]
[1733858504290,1.6458,212.29,212.2,0.25098]
[1733858504500,1.6458,212.29,212.16,58.15000085]
[1733858504795,1.6458,212.29,212.16,58.50442988]
[1733858505104,1.6458,212.29,212.17,0.25098]
[1733858505902,1.6458,212.29,212.19,0.12549]
[1733858506101,1.6458,212.29,212.19,38.40098085]
[1733858506404,1.6458,212.29,212.21,0.25098]
[1733858506579,0.88310179,212.37,212.23,0.25098]
[1733858506786,0.88294361,212.37,212.25,0.25098]
[1733858506982,7.7575,212.38,212.25,0.25098]
[1733858507186,0.88297368,212.37,212.25,0.25098]
[1733858507393,0.88298144,212.37,212.25,0.25098]
[1733858507983,24.65990579,212.37,212.25,0.25098]
[1733858508182,23.776884,212.37,212.25,0.25098]
[1733858508507,0.88296397,212.37,212.25,0.25098]
[1733858509281,7.7575,212.38,212.25,0.25098]
[1733858509474,0.88298067,212.37,212.25,0.25098]
[1733858509673,23.776884,212.37,212.25,0.25098]
[1733858510005,24.6598659,212.37,212.25,0.25098]
[1733858510303,23.776884,212.37,212.25,0.25098]
[1733858510502,0.88299359,212.44,212.36,38.15000085]
[1733858510811,1.6458,212.46,212.37,0.35309888]
[1733858510989,1.6458,212.46,212.38,38.15000085]
[1733858511171,1.16498843,212.51,212.4,38.15000085]
[1733858511378,0.28234,212.51,212.41,0.35261568]
[1733858511577,0.42560258,212.5,212.41,0.35261568]
[1733858511774,0.42560258,212.5,212.42,38.15000085]
[1733858512080,0.42560258,212.5,212.44,0.12549]
[1733858512278,4.258e-05,212.51,212.48,38.15000085]
[1733858512478,4.258e-05,212.51,212.5,38.15000085]
[1733858512722,0.5793538,212.65,212.54,0.12549]
[1733858512886,0.5793538,212.65,212.56,0.12549]
[1733858513099,0.5793538,212.65,212.54,0.35123722]
[1733858513986,0.5793538,212.65,212.5,0.25098]
[1733858514191,0.88186209,212.64,212.51,0.35175264]
[1733858514605,0.88186209,212.64,212.49,38.50167323]
[1733858515307,0.88186209,212.64,212.49,0.35167238]
[1733858515519,0.88186209,212.64,212.48,38.15000085]
[1733858515686,0.88186209,212.64,212.46,38.50186691]
[1733858515889,20.0,212.59,212.42,38.50195513]
[1733858516192,20.0,212.56,212.4,38.15000085]
[1733858516384,0.88236587,212.55,212.4,38.15000085]
[1733858516588,20.0,212.54,212.36,38.50239024]
[1733858516786,20.0,212.5,212.36,38.15000085]
[1733858517105,0.88260725,212.49,212.34,38.15000085]
[1733858517602,0.88260725,212.49,212.35,0.35300493]
[1733858518818,0.88260725,212.49,212.34,38.15000085]
[1733858519003,20.88260725,212.49,212.34,38.15000085]
[1733858519319,20.0,212.48,212.32,38.15000085]
[1733858519521,0.88270226,212.47,212.33,0.35320653]
[1733858520201,20.0,212.46,212.29,38.50320602]
[1733858520401,20.88280522,212.45,212.29,38.50320602]
[1733858520927,20.88280522,212.45,212.3,0.12549]
[1733858521218,1.6458,212.52,212.37,38.15000085]
[1733858521388,0.8824932,212.51,212.37,38.15000085]
[1733858521712,0.8824932,212.51,212.33,38.50278927]
[1733858521899,0.8824932,212.51,212.35,38.15000085]
[1733858522104,0.8824932,212.51,212.36,0.35286673]
[1733858522418,15.0,212.48,212.31,38.15000085]
[1733858522588,20.0,212.43,212.29,0.35293426]
[1733858522790,20.0,212.43,212.25,38.15000085]
[1733858522791,8.0991,212.41,212.25,38.15000085]
[1733858523102,8.0991,212.41,212.21,6.5032]
[1733858523103,20.0,212.37,212.21,38.15000085]
[1733858523298,0.88314417,212.36,212.21,38.15000085]
[1733858523483,20.88314417,212.36,212.19,38.50374939]
[1733858523684,0.88314417,212.36,212.21,38.15000085]
[1733858523994,0.88318522,212.38,212.27,38.15000085]
[1733858524190,8.0991,212.41,212.3,38.15000085]
[1733858524520,8.0991,212.41,212.31,38.50331978]
[1733858525293,0.88274276,212.4,212.28,38.15000085]
[1733858525508,0.88274276,212.4,212.27,38.15000085]
[1733858525509,0.88293413,212.4,212.27,38.15000085]
[1733858525696,0.88293413,212.4,212.25,38.15000085]
[1733858525905,0.88293413,212.4,212.27,38.15000085]
[1733858528202,0.88293413,212.4,212.25,38.15000085]
[1733858528398,20.0,212.38,212.23,38.15000085]
[1733858528592,0.88306511,212.37,212.23,38.15000085]
[1733858528793,0.88306511,212.37,212.19,38.503934]
[1733858529003,20.0,212.36,212.19,38.503934]
[1733858529204,20.0,212.34,212.17,38.15000085]
[1733858529424,20.0,212.31,212.13,38.50429529]
[1733858529620,2.43917224,212.3,212.13,38.50429529]
[1733858529819,2.43917224,212.3,212.15,38.15000085]
[1733858530199,6.44969,212.29,212.15,38.15000085]
[1733858530507,6.44969,212.29,212.09,38.15000085]
[1733858530508,20.0,212.26,212.09,38.15000085]
[1733858530718,0.88358685,212.25,212.11,38.15000085]
[1733858531725,0.88359294,212.28,212.13,38.15000085]
[1733858532028,20.0,212.26,212.13,38.15000085]
[1733858532208,0.88353986,212.25,212.13,38.15000085]
[1733858532407,20.0,212.26,212.14,0.35480922]
[1733858533014,0.88350361,212.28,212.16,38.15000085]
[1733858533327,0.88328586,212.28,212.17,0.35437373]
[1733858533509,6.3242,212.29,212.18,0.35470125]
[1733858533708,0.88333159,212.28,212.18,0.35470125]
[1733858534509,0.88333159,212.28,212.16,0.35456671]
[1733858534711,6.3242,212.29,212.16,38.50456756]
[1733858535525,20.0,212.26,212.13,38.15000085]
[1733858535710,20.0,212.26,212.14,0.35476294]
[1733858536034,0.8834807,212.25,212.14,0.35476294]
[1733858536201,20.0,212.26,212.14,0.35476294]
[1733858536405,20.0,212.26,212.14,38.50476379]
[1733858536627,20.0,212.26,212.14,0.35476294]
[1733858537012,0.8834755,212.25,212.1,38.15000085]
[1733858537215,0.8834755,212.25,212.1,38.50512358]
[1733858537414,0.8834755,212.25,212.1,0.35512273]
[1733858537605,0.8834755,212.25,212.08,38.15000085]
[1733858537806,0.8834755,212.25,212.12,38.15000085]
[1733858538145,0.88354394,212.28,212.14,38.15000085]
[1733858538305,0.88354394,212.28,212.15,0.35460579]
[1733858538507,0.88354394,212.28,212.15,38.50460664]
[1733858539040,0.88354394,212.28,212.16,38.15000085]
[1733858539342,0.88354394,212.28,212.17,0.35463347]
[1733858539931,6.3242,212.29,212.17,38.50463432]
[1733858540132,6.3242,212.29,212.19,38.15000085]
[1733858540429,6.3242,212.29,212.19,38.50437883]
[1733858540635,6.3242,212.29,212.17,38.15000085]
[1733858540939,6.3242,212.29,212.18,0.35447889]
[1733858542428,0.88333559,212.28,212.18,0.35447889]
[1733858542624,6.3242,212.29,212.16,0.35452106]
[1733858542922,0.88335212,212.28,212.16,0.35452106]
[1733858543126,6.3242,212.29,212.17,38.15000085]
[1733858543319,6.3242,212.29,212.18,0.35446433]
[1733858544234,20.0,212.26,212.11,38.15000085]
[1733858544439,0.88360209,212.25,212.09,0.35449427]
[1733858544749,20.88360209,212.25,212.09,38.50449512]
[1733858544940,20.88360209,212.25,212.1,0.25098]
[1733858545246,0.25098,212.24,212.09,0.35449427]
[1733858545451,1.5994,212.21,212.05,38.15000085]
[1733858545634,0.88384606,212.2,212.03,38.15000085]
[1733858545819,20.0,212.16,212.03,38.15000085]
[1733858546043,0.88393812,212.15,212.03,38.15000085]
[1733858546760,3.1362268,212.21,212.03,38.15000085]
[1733858546761,22.24674117,212.59,212.21,45.0]
[1733858547049,0.52825987,212.58,212.47,15.0]
[1733858547215,0.52825987,212.58,212.45,2.44850488]
[1733858547216,0.52825987,212.64,212.48,0.70572549]
[1733858547416,15.0,212.59,212.45,2.44850488]
[1733858547725,0.52825987,212.58,212.45,2.44850488]
[1733858548444,0.52825987,212.58,212.45,55.59850573]
[1733858548743,0.52825987,212.6,212.47,38.15000085]
[1733858548914,0.52825987,212.6,212.45,2.44850488]
[1733858549116,15.0,212.59,212.45,2.44850488]
[1733858549435,0.52825987,212.58,212.45,2.44850488]
[1733858549928,1.5398,212.57,212.45,2.44850488]
[1733858550142,0.52825987,212.56,212.45,2.44850488]
[1733858550945,20.0,212.55,212.45,2.44850488]
[1733858551150,0.52825987,212.54,212.45,40.59850573]
[1733858551862,0.52825987,212.54,212.47,38.15000085]
[1733858552024,1.5398,212.57,212.51,15.0]
[1733858552218,0.52825987,212.62,212.51,38.15000085]
[1733858552422,0.12549,212.61,212.47,38.15000085]
[1733858552747,0.52825987,212.6,212.47,38.15000085]
[1733858552941,0.12549,212.62,212.47,38.15000085]
[1733858553138,0.52825987,212.61,212.47,38.15000085]
[1733858553995,0.52825987,212.61,212.34,50.98515008]
[1733858553996,0.37647,212.6,212.43,38.15000085]
[1733858554116,0.37647,212.6,212.41,15.0]
[1733858554117,20.0,212.54,212.41,38.15000085]
[1733858554320,0.52825987,212.53,212.43,38.15000085]
[1733858554827,0.52825987,212.53,212.41,38.15000085]
[1733858555323,0.52825987,212.54,212.41,38.15000085]
[1733858556953,20.25098,212.53,212.41,38.15000085]
[1733858557129,0.52825987,212.52,212.39,38.15000085]
[1733858557448,0.52825987,212.55,212.45,38.15000085]
[1733858557624,0.52825987,212.54,212.45,38.15000085]
[1733858557830,20.0,212.56,212.45,38.15000085]
[1733858558030,0.52825987,212.55,212.45,38.15000085]
[1733858558243,0.52825987,212.55,212.43,38.15000085]
[1733858558837,0.52825987,212.55,212.45,38.15000085]
[1733858559225,0.77923987,212.57,212.45,38.15000085]
[1733858559425,20.0,212.56,212.45,38.15000085]
[1733858559640,0.52825987,212.55,212.45,38.15000085]
[1733858559825,0.52825987,212.55,212.43,38.15000085]
[1733858560348,0.52825987,212.55,212.45,53.15000085]
[1733858560548,0.52825987,212.6,212.45,53.15000085]
[1733858561140,0.12549,212.59,212.43,38.15000085]
[1733858561342,0.12549,212.57,212.43,38.15000085]
[1733858561550,20.0,212.55,212.43,38.15000085]
[1733858561735,0.52825987,212.54,212.43,38.15000085]
[1733858562052,20.0,212.53,212.43,38.15000085]
[1733858562229,0.52825987,212.52,212.43,38.15000085]
[1733858563132,0.52825987,212.54,212.43,38.15000085]
[1733858563935,0.52825987,212.54,212.49,38.15000085]
[1733858564146,0.52825987,212.58,212.53,38.15000085]
[1733858564355,0.52825987,212.63,212.53,53.15000085]
[1733858564858,19.24837571,212.91,212.55,38.15000085]
[1733858564859,2.06805987,212.64,212.55,38.15000085]
[1733858565044,2.06805987,212.64,212.53,38.15000085]
[1733858565452,2.06805987,212.64,212.51,38.15000085]
[1733858566470,2.06805987,212.64,212.49,38.15000085]
[1733858566840,20.0,212.62,212.49,38.15000085]
[1733858567151,0.52825987,212.61,212.51,38.15000085]
[1733858567357,0.52825987,212.61,212.53,38.15000085]
[1733858568554,0.52825987,212.61,212.52,15.0]
[1733858568864,0.52825987,212.61,212.51,38.15000085]
[1733858569240,0.52825987,212.61,212.52,15.0]
[1733858569561,0.52825987,212.61,212.53,38.15000085]
[1733858569770,0.52825987,212.63,212.53,38.15000085]
[1733858570135,0.52825987,212.63,212.54,15.0]
[1733858570336,0.52825987,212.63,212.55,38.15000085]
[1733858570849,20.42553191,212.62,212.51,38.15000085]
[1733858571171,0.52825987,212.61,212.5,15.0]
[1733858571353,0.52825987,212.61,212.48,15.0]
[1733858571549,20.42553191,212.6,212.46,38.15000085]
[1733858571763,0.52825987,212.59,212.48,38.15000085]
[1733858572096,0.42553191,212.58,212.49,15.0]
[1733858572243,0.52825987,212.57,212.48,38.15000085]
[1733858572584,0.42553191,212.56,212.46,38.15000085]
[1733858572779,0.52825987,212.55,212.46,38.15000085]
[1733858573272,0.42553191,212.54,212.46,38.15000085]
[1733858573478,0.42553191,212.54,212.45,15.0]
[1733858573656,0.42553191,212.54,212.3,53.5513]
[1733858573657,20.42553191,212.54,212.39,38.15000085]
[1733858573861,20.0,212.5,212.4,15.0]
[1733858574061,0.52825987,212.49,212.41,38.15000085]
[1733858574260,0.95379178,212.49,212.41,38.15000085]
[1733858574579,0.42553191,212.49,212.41,53.15000085]
[1733858575049,0.42553191,212.49,212.44,15.0]
[1733858575570,0.42553191,212.49,212.39,38.15000085]
[1733858575752,0.95379178,212.49,212.39,53.15000085]
[1733858578281,0.95379178,212.49,212.41,15.0]
[1733858578282,0.42553191,212.49,212.41,15.0]
[1733858578453,0.42553191,212.49,212.46,15.0]
[1733858578660,0.42553191,212.49,212.44,53.15000085]
[1733858578994,0.42553191,212.49,212.41,15.0]
[1733858579145,0.25098,212.48,212.41,15.0]
[1733858579346,0.77923987,212.48,212.41,15.0]
[1733858579574,0.42553191,212.47,212.41,15.0]
[1733858579983,0.42553191,212.47,212.43,53.15000085]
[1733858580386,0.42553191,212.47,212.45,38.15000085]
[1733858580589,0.42553191,212.47,212.46,38.855894]
[1733858580968,0.42553191,212.47,212.46,38.15000085]
[1733858582369,1.6642,212.6,212.53,15.0]
[1733858582572,1.6642,212.6,212.53,53.15000085]
[1733858583296,1.6642,212.67,212.53,53.15000085]
[1733858583463,0.52825987,212.64,212.53,53.15000085]
[1733858584067,0.52825987,212.64,212.55,53.15000085]
[1733858585094,0.52825987,212.64,212.51,53.15000085]
[1733858585293,0.25098,212.63,212.51,53.15000085]
[1733858585512,0.25098,212.61,212.51,53.15000085]
[1733858586195,0.52825987,212.64,212.53,38.15000085]
[1733858586761,0.25098,212.63,212.53,53.15000085]
[1733858589282,0.25098,212.63,212.53,38.39174169]
[1733858590703,0.25098,212.63,212.53,15.0]
[1733858591010,0.25098,212.61,212.49,23.39174169]
[1733858591303,0.25098,212.57,212.43,23.39174169]
[1733858591605,0.25098,212.55,212.43,23.39174169]
[1733858591809,0.25098,212.53,212.43,23.39174169]
[1733858591982,0.25098,212.51,212.43,23.39174169]
[1733858592705,0.25098,212.49,212.41,23.39174169]
[1733858593000,0.25098,212.49,212.38,6.6134]
[1733858593001,0.25098,212.49,212.39,23.39174169]
[1733858593776,0.77923987,212.51,212.39,23.39174169]
[1733858594176,0.77923987,212.51,212.36,23.39174169]
[1733858594380,20.77923987,212.51,212.35,23.39174169]
[1733858594609,20.77923987,212.51,212.37,15.0]
[1733858594894,20.77923987,212.51,212.37,38.39174169]
[1733858595092,20.77923987,212.51,212.39,23.39174169]
[1733858595291,0.77923987,212.51,212.41,23.39174169]
[1733858595509,0.52825987,212.53,212.47,23.39174169]
[1733858595806,5.6802,212.6,212.5,23.39174169]
[1733858595807,2.19245987,212.59,212.5,23.39174169]
[1733858596110,2.19245987,212.59,212.51,15.0]
[1733858596303,1.6642,212.59,212.52,23.39174169]
[1733858596913,1.6642,212.59,212.52,38.39174169]
[1733858597293,1.6642,212.59,212.52,53.01276978]
[1733858598406,0.52825987,212.64,212.52,53.01276978]
[1733858598591,0.52825987,212.64,212.54,53.01276978]
[1733858599125,0.52825987,212.64,212.54,15.0]
[1733858599290,0.5793538,212.65,212.57,15.0]
[1733858600013,0.5793538,212.65,212.54,38.01276978]
[1733858600306,0.5793538,212.65,212.55,15.0]
[1733858600997,0.52825987,212.64,212.55,15.0]
[1733858602017,0.5793538,212.65,212.55,15.0]
[1733858602313,0.52825987,212.64,212.55,15.0]
[1733858603207,0.52825987,212.64,212.47,11.7662]
[1733858603208,0.65374987,212.64,212.53,15.0]
[1733858603609,0.52825987,212.64,212.57,15.0]
[1733858603913,0.5793538,212.65,212.57,15.0]
[1733858604114,0.52825987,212.64,212.57,15.0]
[1733858604299,0.5793538,212.65,212.57,15.0]
[1733858604615,0.52825987,212.64,212.54,15.0]
[1733858604992,0.52825987,212.64,212.53,38.01276978]
[1733858605197,0.52825987,212.64,212.52,15.0]
[1733858605400,0.12549,212.63,212.52,15.0]
[1733858606539,0.12549,212.61,212.52,15.0]
[1733858606822,0.25098,212.61,212.49,38.01276978]
[1733858607034,0.52825987,212.6,212.51,15.0]
[1733858607513,0.12549,212.59,212.49,38.01276978]
[1733858608201,0.12549,212.61,212.49,38.01276978]
[1733858608410,0.52825987,212.6,212.51,15.0]
[1733858608703,0.12549,212.61,212.51,15.0]
[1733858608895,0.52825987,212.6,212.51,15.0]
[1733858609323,0.12549,212.59,212.48,53.01276978]
[1733858609901,0.25098,212.61,212.48,53.01276978]
[1733858610101,0.12549,212.59,212.48,53.01276978]
[1733858611117,0.25098,212.6,212.48,53.01276978]
[1733858611618,0.25098,212.58,212.46,53.01276978]
[1733858611806,0.77923987,212.58,212.46,53.01276978]
[1733858612503,0.25098,212.56,212.46,15.0]
[1733858612710,0.77923987,212.56,212.44,53.01276978]
[1733858613011,0.25098,212.51,212.36,53.01276978]
[1733858613220,0.25098,212.49,212.36,53.01276978]
[1733858613519,0.52825987,212.48,212.36,53.01276978]
[1733858613723,0.25098,212.47,212.36,15.0]
[1733858614055,0.52825987,212.46,212.36,15.0]
[1733858615608,0.52825987,212.46,212.34,38.01276978]
[1733858615609,0.25098,212.45,212.34,53.01276978]
[1733858615808,0.25098,212.43,212.34,15.0]
[1733858616126,0.25098,212.43,212.32,15.0]
[1733858616519,0.25098,212.41,212.3,15.0]
[1733858616836,20.52825987,212.42,212.28,15.0]
[1733858616837,0.25098,212.39,212.28,15.0]
[1733858617013,0.25098,212.37,212.25,15.0]
[1733858617215,0.25098,212.35,212.25,15.0]
[1733858617522,0.52825987,212.35,212.26,23.45848709]
[1733858617705,0.25098,212.38,212.25,38.45848709]
[1733858618102,0.52825987,212.37,212.27,15.0]
[1733858618412,0.12549,212.36,212.27,15.0]
[1733858618606,0.25098,212.36,212.23,23.45848709]
[1733858618811,0.25098,212.34,212.24,15.0]
[1733858619113,1.75328,212.34,212.24,15.0]
[1733858619620,1.75328,212.34,212.22,15.0]
[1733858619814,0.25098,212.32,212.24,15.0]
[1733858620002,0.25098,212.32,212.21,15.0]
[1733858620211,0.12549,212.3,212.23,15.0]
[1733858621131,0.25098,212.3,212.21,15.0]
[1733858621346,0.12549,212.28,212.21,15.0]
[1733858621502,0.25098,212.28,212.19,15.0]
[1733858622024,0.25098,212.26,212.16,38.45848709]
[1733858622319,0.25098,212.24,212.1,15.0]
[1733858622522,20.52825987,212.25,212.1,15.0]
[1733858622523,0.25098,212.22,212.1,15.0]
[1733858622699,0.25098,212.2,212.1,15.0]
[1733858623095,0.25098,212.18,212.1,15.0]
[1733858623627,0.25098,212.21,212.07,38.45848709]
[1733858623830,0.25098,212.19,212.07,39.32073607]
[1733858624020,0.25098,212.17,212.09,15.0]
[1733858624407,0.52825987,212.22,212.1,15.0]
[1733858624609,0.52825987,212.22,212.12,15.0]
[1733858625011,0.25098,212.21,212.1,15.0]
[1733858625211,0.25098,212.16,212.07,0.86224898]
[1733858625525,0.77923987,212.16,212.07,0.86224898]
[1733858625901,0.12549,212.15,212.07,0.86224898]
[1733858626102,0.12549,212.15,211.95,14.69311437]
[1733858626103,22.15935987,212.14,211.99,15.0]
[1733858626415,0.25098,212.13,211.99,15.0]
[1733858626610,0.25098,212.11,211.99,15.0]
[1733858626802,0.25098,212.09,211.99,15.0]
[1733858627010,0.25098,212.09,211.99,38.45848709]
[1733858627407,0.77923987,212.13,211.99,38.45848709]
[1733858628423,0.12549,212.12,211.97,23.45848709]
[1733858628628,0.25098,212.1,211.96,15.0]
[1733858628801,0.25098,212.08,211.96,15.0]
[1733858629003,0.25098,212.06,211.96,15.0]
[1733858629411,0.25098,212.03,211.94,38.45848709]
[1733858629609,0.77923987,212.03,211.94,38.45848709]
[1733858630011,0.52825987,212.03,211.96,15.0]
[1733858630813,0.42553192,212.02,211.98,15.0]